bitfinex/quotes_BTCUSD_20220109
["timestamp","ask_amount","ask_price","bid_price","bid_amount"]
[1641764762051,6.63791178,42311.0,42310.0,0.611171]
[1641764762303,6.63791178,42311.0,42310.0,0.260671]
[1641764763300,6.63791178,42311.0,42310.0,0.233671]
[1641764764001,6.63791178,42311.0,42310.0,0.260671]
[1641764765203,1.00025836,42311.0,42310.0,0.260671]
[1641764765401,1.00025836,42311.0,42310.0,0.233671]
[1641764766048,1.00025836,42311.0,42310.0,0.260671]
[1641764766354,0.99525836,42311.0,42310.0,1.460671]
[1641764766564,0.99525836,42311.0,42310.0,0.645722]
[1641764766748,0.99525836,42311.0,42310.0,0.260671]
[1641764767348,0.99525836,42311.0,42310.0,0.233671]
[1641764768148,0.99525836,42311.0,42310.0,0.277671]
[1641764769350,0.99525836,42311.0,42310.0,0.233671]
[1641764769550,0.99525836,42311.0,42310.0,0.533671]
[1641764769799,0.99525836,42311.0,42310.0,0.233671]
[1641764769999,0.99525836,42311.0,42310.0,0.273671]
[1641764770401,0.99525836,42311.0,42310.0,0.573671]
[1641764771000,0.99525836,42311.0,42310.0,0.273671]
[1641764771399,0.99525836,42311.0,42310.0,0.533671]
[1641764772101,0.99525836,42311.0,42310.0,0.582671]
[1641764772702,0.99525836,42311.0,42310.0,0.282671]
[1641764773302,0.99525836,42311.0,42310.0,0.233671]
[1641764774153,0.99525836,42311.0,42310.0,0.282671]
[1641764775451,0.99525836,42311.0,42310.0,0.233671]
[1641764776051,0.99525836,42311.0,42310.0,0.281671]
[1641764777300,0.99525836,42311.0,42310.0,0.233671]
[1641764778000,0.99525836,42311.0,42310.0,0.276671]
[1641764779305,0.99525836,42311.0,42310.0,0.233671]
[1641764780102,0.99525836,42311.0,42310.0,0.276671]
[1641764780404,0.5425721,42311.0,42310.0,0.726671]
[1641764780602,0.5425721,42311.0,42310.0,1.111722]
[1641764780802,0.5425721,42311.0,42310.0,0.661722]
[1641764781446,0.5425721,42311.0,42310.0,0.618722]
[1641764782048,0.5425721,42311.0,42310.0,0.660722]
[1641764783348,0.5425721,42311.0,42310.0,0.618722]
[1641764784148,0.5425721,42311.0,42310.0,0.662722]
[1641764784805,0.00019053,42313.0,42311.0,1.2]
[1641764785010,0.9726,42326.0,42313.0,1.2]
[1641764785206,0.9726,42326.0,42314.0,0.385051]
[1641764785406,0.9726,42326.0,42315.0,0.44821231]
[1641764785607,0.9726,42326.0,42316.0,0.23657298]
[1641764785807,0.9726,42326.0,42321.0,0.41779566]
[1641764786009,0.2845,42327.0,42321.0,0.47684766]
[1641764786309,0.2845,42327.0,42321.0,1.22290415]
[1641764786509,0.28461298,42327.0,42321.0,1.22290415]
[1641764786711,0.28461298,42327.0,42321.0,0.83785315]
[1641764787111,0.28461298,42327.0,42321.0,0.47684766]
[1641764788112,0.28461298,42327.0,42321.0,0.50084766]
[1641764788311,0.28461298,42327.0,42321.0,0.083052]
[1641764788550,0.00011298,42327.0,42321.0,0.44484719]
[1641764788748,0.00011298,42327.0,42321.0,0.44909441]
[1641764789148,0.00019711,42324.0,42321.0,0.44909441]
[1641764789348,0.00019711,42324.0,42321.0,0.42509441]
[1641764789553,0.26513116,42322.0,42321.0,0.059052]
[1641764790150,0.26513116,42322.0,42321.0,0.081052]
[1641764790151,0.26013116,42322.0,42321.0,0.081052]
[1641764790353,0.69518216,42322.0,42321.0,0.022]
[1641764791151,0.64518216,42322.0,42321.0,0.022]
[1641764791353,0.26013116,42322.0,42321.0,0.059061]
[1641764791550,0.26013116,42322.0,42316.0,0.35469698]
[1641764792212,0.26013116,42322.0,42320.0,0.26418214]
[1641764792409,0.26013116,42322.0,42321.0,0.118102]
[1641764794208,0.26013116,42322.0,42321.0,0.137102]
[1641764795409,0.26013116,42322.0,42321.0,0.118102]
[1641764796054,0.26013116,42322.0,42321.0,0.136102]
[1641764797359,0.26013116,42322.0,42321.0,0.118102]
[1641764797756,0.31013116,42322.0,42321.0,0.118102]
[1641764797956,0.69518216,42322.0,42321.0,0.118102]
[1641764798156,0.69518216,42322.0,42321.0,0.018]
[1641764799459,0.69518216,42322.0,42319.0,0.059065]
[1641764799706,0.51047007,42320.0,42319.0,0.059065]
[1641764799909,0.21047007,42320.0,42319.0,0.059065]
[1641764800108,0.21047007,42320.0,42319.0,0.077065]
[1641764800510,0.05906342,42321.0,42319.0,0.077065]
[1641764801509,0.05906342,42321.0,42319.0,0.059065]
[1641764801911,0.31032129,42322.0,42319.0,0.059065]
[1641764802110,6.0,42321.0,42319.0,0.093065]
[1641764803456,6.0,42321.0,42319.0,0.059065]
[1641764804254,6.0,42321.0,42319.0,0.091065]
[1641764804654,0.00024669,42320.0,42319.0,0.091065]
[1641764805357,5.790812,42315.0,42312.0,0.31673123]
[1641764805556,5.790812,42315.0,42312.0,0.31545105]
[1641764805956,5.790812,42315.0,42313.0,0.165368]
[1641764806455,5.790812,42315.0,42314.0,0.21770147]
[1641764806858,5.790812,42315.0,42313.0,0.118122]
[1641764807307,5.790812,42315.0,42314.0,0.118121]
[1641764808106,5.790812,42315.0,42314.0,0.165121]
[1641764809110,5.790812,42315.0,42314.0,0.78395709]
[1641764809308,5.790812,42315.0,42314.0,0.38695709]
[1641764809710,5.790812,42315.0,42314.0,1.48695709]
[1641764809711,5.09944564,42315.0,42314.0,1.48695709]
[1641764809908,5.09944564,42315.0,42314.0,0.38695709]
[1641764810108,5.09944564,42315.0,42314.0,0.87295709]
[1641764810413,5.09217769,42315.0,42314.0,0.87295709]
[1641764811454,5.09217769,42315.0,42314.0,0.83695709]
[1641764811651,4.61977169,42315.0,42314.0,1.13695709]
[1641764811851,4.61977169,42315.0,42314.0,0.83695709]
[1641764812251,4.61977169,42315.0,42314.0,0.90595709]
[1641764813056,4.61977169,42315.0,42314.0,0.45595709]
[1641764813453,4.61977169,42315.0,42314.0,0.43395709]
[1641764814252,4.61977169,42315.0,42314.0,0.45595709]
[1641764814708,4.14736269,42315.0,42314.0,1.94537853]
[1641764815107,3.27662452,42315.0,42314.0,1.50595709]
[1641764815408,2.80422252,42315.0,42314.0,1.68395709]
[1641764815614,2.80422252,42315.0,42314.0,1.78395709]
[1641764815808,2.33182752,42315.0,42314.0,1.78395709]
[1641764816009,2.33182752,42315.0,42314.0,2.16900809]
[1641764816211,1.85942652,42315.0,42314.0,2.03900809]
[1641764816909,1.38702452,42315.0,42314.0,2.03900809]
[1641764817510,0.91461752,42315.0,42314.0,2.01900809]
[1641764818113,0.44222152,42315.0,42314.0,2.03800809]
[1641764818557,0.0001901,42317.0,42315.0,1.2]
[1641764818758,0.2598842,42322.0,42316.0,2.15985095]
[1641764818958,0.0001901,42317.0,42316.0,2.15985095]
[1641764819357,0.0001901,42317.0,42316.0,0.95985095]
[1641764819959,0.2598842,42322.0,42321.0,0.91025079]
[1641764820160,0.2598842,42322.0,42321.0,1.29587673]
[1641764820364,0.2598842,42322.0,42321.0,1.35492773]
[1641764820662,0.25999718,42322.0,42321.0,1.35492773]
[1641764821461,0.25999718,42322.0,42321.0,1.74208959]
[1641764821660,0.25999718,42322.0,42321.0,1.35492773]
[1641764822304,0.2598842,42322.0,42321.0,1.75902388]
[1641764822605,0.2598842,42322.0,42321.0,1.85602388]
[1641764822805,0.2598842,42322.0,42321.0,1.80602388]
[1641764823506,0.2598842,42322.0,42321.0,1.78602388]
[1641764824306,0.2598842,42322.0,42321.0,1.80302388]
[1641764824508,0.26011886,42322.0,42321.0,1.80302388]
[1641764825108,0.26011886,42322.0,42321.0,1.60775477]
[1641764825510,0.00019012,42324.0,42322.0,1.235051]
[1641764825709,0.00019012,42324.0,42323.0,0.747]
[1641764825955,0.00019012,42324.0,42323.0,1.132051]
[1641764826155,0.00019012,42324.0,42323.0,0.449051]
[1641764826553,0.00019012,42326.0,42323.0,0.449051]
[1641764826752,0.00019012,42326.0,42324.0,0.7664173]
[1641764826952,0.00019012,42326.0,42325.0,0.468099]
[1641764827252,0.00019012,42326.0,42325.0,0.85315]
[1641764827551,0.05905156,42330.0,42325.0,0.50315]
[1641764827751,0.00019012,42328.0,42325.0,0.118099]
[1641764828255,0.00019012,42328.0,42325.0,0.129099]
[1641764828655,0.05905104,42330.0,42325.0,0.129099]
[1641764828952,0.00019013,42329.0,42325.0,0.129099]
[1641764829808,0.05446479,42330.0,42325.0,0.129099]
[1641764830108,0.00020087,42329.0,42325.0,0.129099]
[1641764830309,0.00020087,42329.0,42325.0,0.141099]
[1641764830908,0.07904867,42332.0,42325.0,0.141099]
[1641764831310,0.02,42332.0,42325.0,0.141099]
[1641764831609,0.02,42332.0,42325.0,0.118099]
[1641764832009,0.05905135,42330.0,42325.0,0.118099]
[1641764832209,0.05905135,42330.0,42325.0,0.122099]
[1641764832411,0.02,42332.0,42325.0,0.122099]
[1641764833211,0.00019667,42331.0,42326.0,0.21472957]
[1641764833464,0.00019667,42331.0,42328.0,0.059045]
[1641764834265,0.01519667,42332.0,42328.0,0.068045]
[1641764834464,0.01519667,42332.0,42328.0,0.38062544]
[1641764834665,0.00021299,42331.0,42328.0,0.38062544]
[1641764835065,0.00021299,42331.0,42329.0,0.385051]
[1641764835265,0.00021299,42331.0,42330.0,0.118084]
[1641764835465,0.00021299,42331.0,42330.0,0.503135]
[1641764836270,0.00021299,42331.0,42330.0,0.516135]
[1641764836467,0.00021299,42331.0,42330.0,0.131084]
[1641764837413,0.00021299,42331.0,42330.0,0.118084]
[1641764838210,0.00021299,42331.0,42330.0,0.131084]
[1641764839612,0.00021299,42331.0,42330.0,0.118084]
[1641764839814,0.00021299,42331.0,42330.0,0.128084]
[1641764840213,0.00021299,42331.0,42330.0,0.141084]
[1641764841458,0.00021299,42331.0,42330.0,0.128084]
[1641764842255,0.00021299,42331.0,42330.0,0.141084]
[1641764843456,0.00021299,42331.0,42330.0,0.128084]
[1641764844356,0.00021299,42331.0,42330.0,0.141084]
[1641764845608,0.00021299,42331.0,42330.0,0.128084]
[1641764846407,0.00021299,42331.0,42330.0,0.147084]
[1641764847508,0.00021299,42331.0,42330.0,0.128084]
[1641764848307,0.00021299,42331.0,42330.0,0.146084]
[1641764849559,0.00021299,42331.0,42330.0,0.128084]
[1641764850363,0.00021299,42331.0,42330.0,0.146084]
[1641764851563,0.00021299,42331.0,42330.0,0.128084]
[1641764852309,0.00021299,42331.0,42330.0,0.145084]
[1641764853409,0.00021299,42331.0,42330.0,0.530135]
[1641764853613,0.00021299,42331.0,42330.0,0.90839241]
[1641764854411,0.00021299,42331.0,42330.0,0.92439241]
[1641764855611,0.00021299,42331.0,42330.0,0.90839241]
[1641764856256,0.00021299,42331.0,42330.0,0.92439241]
[1641764857658,0.00021299,42331.0,42330.0,0.513135]
[1641764858156,0.00021299,42331.0,42330.0,0.89193439]
[1641764858355,0.00021299,42331.0,42330.0,0.90793439]
[1641764859707,0.00021299,42331.0,42330.0,0.89193439]
[1641764860310,0.00021299,42331.0,42330.0,0.529135]
[1641764860611,0.00021299,42331.0,42330.0,0.90801604]
[1641764861512,0.00021299,42331.0,42330.0,0.90966648]
[1641764861711,0.00021299,42331.0,42330.0,0.91923225]
[1641764862114,0.00021299,42331.0,42330.0,0.90323225]
[1641764862310,0.00021299,42331.0,42330.0,0.92123225]
[1641764863663,0.00021299,42331.0,42330.0,0.90323225]
[1641764864264,0.00021299,42331.0,42330.0,0.513135]
[1641764864465,0.00021299,42331.0,42330.0,0.90945752]
[1641764865166,0.00021299,42331.0,42330.0,0.529135]
[1641764865465,0.00021299,42331.0,42330.0,0.91321174]
[1641764865665,0.00021299,42331.0,42330.0,0.513135]
[1641764865868,0.00021299,42331.0,42330.0,0.89403932]
[1641764866067,0.00021299,42331.0,42330.0,0.513135]
[1641764866266,0.00021299,42331.0,42330.0,0.531135]
[1641764866868,0.00021299,42331.0,42330.0,0.92910857]
[1641764867509,0.00021299,42331.0,42330.0,0.91110857]
[1641764868406,0.00021299,42331.0,42330.0,0.93110857]
[1641764869607,0.00021299,42331.0,42330.0,0.91110857]
[1641764870409,0.00021299,42331.0,42330.0,0.93410857]
[1641764871267,0.00021299,42331.0,42330.0,1.58410857]
[1641764871469,0.00021299,42331.0,42330.0,1.63232437]
[1641764871667,0.00021299,42331.0,42330.0,1.60932437]
[1641764872473,0.00021299,42331.0,42330.0,1.63332437]
[1641764873666,0.00021299,42331.0,42330.0,1.60932437]
[1641764874368,0.00021299,42331.0,42330.0,1.63732437]
[1641764874813,0.00021299,42331.0,42330.0,1.03732437]
[1641764875216,0.00021299,42331.0,42330.0,1.33732437]
[1641764875515,0.00021299,42331.0,42330.0,1.30932437]
[1641764876317,0.015,42332.0,42331.0,1.2]
[1641764876516,0.015,42332.0,42331.0,2.26692072]
[1641764877317,0.015,42332.0,42331.0,2.68077233]
[1641764877716,0.0001897,42334.0,42332.0,1.2]
[1641764877917,0.0001897,42334.0,42333.0,1.644075]
[1641764878117,0.0001897,42334.0,42333.0,1.691075]
[1641764878318,0.00018971,42336.0,42333.0,1.716075]
[1641764878560,0.00018971,42336.0,42335.0,1.385051]
[1641764878762,0.00018971,42336.0,42335.0,1.82485029]
[1641764879161,0.00018971,42336.0,42335.0,0.82485029]
[1641764879362,0.004,42339.0,42335.0,0.87485029]
[1641764879661,0.004,42339.0,42338.0,0.4590118]
[1641764879861,0.004,42339.0,42338.0,0.8440628]
[1641764880265,0.004,42339.0,42338.0,1.54191102]
[1641764880564,0.004,42339.0,42338.0,1.74253778]
[1641764881366,0.00018972,42341.0,42339.0,1.15]
[1641764881563,0.004,42349.0,42340.0,1.95416523]
[1641764881763,0.004,42349.0,42344.0,0.28348904]
[1641764881764,0.00075877,42347.0,42344.0,0.28348904]
[1641764881964,0.00075877,42347.0,42345.0,0.385051]
[1641764882816,0.00019008,42348.0,42347.0,0.859015]
[1641764883019,0.00019008,42348.0,42347.0,0.444066]
[1641764883216,0.00019008,42348.0,42347.0,0.059015]
[1641764883817,0.004,42349.0,42347.0,0.059015]
[1641764884419,0.004,42349.0,42347.0,0.078015]
[1641764884621,0.00020469,42348.0,42347.0,0.078015]
[1641764885621,0.00020469,42348.0,42347.0,0.059015]
[1641764886481,0.00020469,42348.0,42347.0,0.100015]
[1641764887183,0.00020469,42348.0,42347.0,0.095015]
[1641764887584,0.00020469,42348.0,42347.0,0.041]
[1641764887983,0.38525569,42348.0,42347.0,0.041]
[1641764888182,0.79612001,42348.0,42347.0,0.041]
[1641764888382,1.04398618,42348.0,42347.0,0.066]
[1641764889488,1.29398617,42348.0,42347.0,0.066]
[1641764889724,1.29298617,42348.0,42347.0,0.02]
[1641764890125,2.34298617,42348.0,42347.0,0.02]
[1641764890329,0.35178167,42345.0,42340.0,0.02]
[1641764890626,1.4596971,42341.0,42340.0,0.02]
[1641764890825,2.34364898,42341.0,42340.0,0.02]
[1641764891026,2.29364898,42341.0,42340.0,0.02]
[1641764891229,1.09364898,42341.0,42340.0,0.02]
[1641764892229,0.83395188,42341.0,42340.0,0.02]
[1641764892427,0.83695188,42341.0,42340.0,0.047]
[1641764893669,1.07412336,42341.0,42340.0,0.047]
[1641764893868,1.07112336,42341.0,42340.0,0.02]
[1641764894267,1.31112336,42341.0,42340.0,0.02]
[1641764894468,1.31312336,42341.0,42340.0,0.02]
[1641764895772,1.31112336,42341.0,42340.0,0.02]
[1641764896572,1.31412336,42341.0,42340.0,0.02]
[1641764896774,1.07695188,42341.0,42340.0,0.02]
[1641764897815,1.07395188,42341.0,42340.0,0.02]
[1641764898416,0.628051,42341.0,42340.0,0.02]
[1641764898619,0.243,42341.0,42340.0,0.02]
[1641764899616,0.62527736,42341.0,42340.0,0.02]
[1641764899816,0.24022636,42341.0,42340.0,0.02]
[1641764900419,0.24122636,42341.0,42340.0,0.02]
[1641764900963,0.24122636,42341.0,42340.0,0.074033]
[1641764900964,1.24122636,42341.0,42340.0,0.074033]
[1641764901760,1.24022636,42341.0,42340.0,0.074033]
[1641764901961,1.24022636,42341.0,42340.0,0.015]
[1641764902563,1.24722636,42341.0,42340.0,0.031]
[1641764903761,1.24022636,42341.0,42340.0,0.015]
[1641764904561,1.24322636,42341.0,42340.0,0.031]
[1641764905419,1.24322636,42341.0,42340.0,0.23497387]
[1641764905718,1.24022636,42341.0,42340.0,0.015]
[1641764906519,1.24022636,42341.0,42340.0,0.034]
[1641764907722,1.24022636,42341.0,42340.0,0.015]
[1641764908573,1.24022636,42341.0,42340.0,0.034]
[1641764909673,1.24022636,42341.0,42340.0,0.015]
[1641764910476,1.24022636,42341.0,42340.0,0.034]
[1641764911777,1.24022636,42341.0,42340.0,0.015]
[1641764912419,1.24022636,42341.0,42340.0,0.033]
[1641764914122,0.00390473,42348.0,42340.0,0.433]
[1641764914320,0.05,42348.0,42340.0,0.433]
[1641764914522,0.23311526,42349.0,42342.0,0.05903]
[1641764914722,0.23235649,42349.0,42342.0,0.05903]
[1641764914922,0.05903143,42345.0,42342.0,0.05903]
[1641764916571,0.385051,42344.0,42342.0,0.05903]
[1641764916870,0.435051,42344.0,42340.0,0.015]
[1641764917172,0.435051,42344.0,42330.0,0.01]
[1641764917173,0.21590602,42341.0,42330.0,0.01]
[1641764917369,0.05905508,42337.0,42330.0,0.01]
[1641764917568,0.00128318,42331.0,42330.0,0.01]
[1641764918568,0.00128318,42331.0,42330.0,0.024]
[1641764919169,0.93633418,42331.0,42330.0,0.024]
[1641764919369,1.33531473,42331.0,42330.0,0.024]
[1641764919825,0.78531473,42331.0,42330.0,0.01]
[1641764920622,0.78531473,42331.0,42330.0,0.022]
[1641764921826,1.13531473,42331.0,42330.0,0.01]
[1641764922026,0.78531473,42331.0,42330.0,0.01]
[1641764922527,0.78531473,42331.0,42330.0,0.022]
[1641764922927,0.78403155,42331.0,42330.0,0.022]
[1641764923765,0.78403155,42331.0,42330.0,0.01]
[1641764924567,0.8092438,42331.0,42330.0,0.019]
[1641764924767,1.4092438,42331.0,42330.0,0.019]
[1641764924971,1.4092438,42331.0,42330.0,0.0001]
[1641764924972,2.26046207,42331.0,42330.0,0.0001]
[1641764925170,2.31046207,42331.0,42330.0,0.0001]
[1641764925369,0.0012876,42329.0,42328.0,0.00020566]
[1641764925666,2.11578971,42329.0,42315.0,0.54550419]
[1641764925868,0.36474454,42325.0,42315.0,0.54550419]
[1641764926069,0.06029805,42323.0,42315.0,0.54550419]
[1641764926567,0.70677922,42328.0,42315.0,0.60150419]
[1641764926968,0.70677922,42328.0,42317.0,0.00020591]
[1641764927233,0.24,42325.0,42321.0,0.059056]
[1641764928027,0.24,42325.0,42321.0,0.0592619]
[1641764928527,0.24,42325.0,42321.0,0.0872619]
[1641764928726,0.24,42325.0,42321.0,0.31314028]
[1641764929128,0.24,42325.0,42321.0,0.0872619]
[1641764929730,0.00021118,42324.0,42321.0,0.0872619]
[1641764929931,0.00021118,42324.0,42321.0,0.0592619]
[1641764929932,0.38082132,42324.0,42321.0,0.0592619]
[1641764930132,0.38082132,42324.0,42321.0,0.059056]
[1641764930534,0.38082132,42324.0,42321.0,0.016]
[1641764930969,0.384838,42323.0,42321.0,0.016]
[1641764931371,0.3659778,42322.0,42321.0,0.016]
[1641764931774,0.3659778,42322.0,42320.0,0.00020589]
[1641764932372,0.3659778,42322.0,42316.0,0.11812]
[1641764932672,0.3659778,42322.0,42320.0,0.061]
[1641764933971,0.3659778,42322.0,42319.0,0.05926889]
[1641764934171,0.3659778,42322.0,42321.0,0.29902988]
[1641764935026,0.61124146,42325.0,42321.0,0.29902988]
[1641764935228,0.24,42325.0,42322.0,0.059058]
[1641764935627,0.29,42325.0,42322.0,0.059058]
[1641764936632,0.29,42325.0,42322.0,0.065058]
[1641764937031,0.24,42325.0,42322.0,0.065058]
[1641764937833,0.24,42325.0,42322.0,0.059058]
[1641764938688,0.24,42325.0,42322.0,0.133058]
[1641764938891,0.24,42325.0,42322.0,0.074]
[1641764939088,0.24,42325.0,42322.0,0.133058]
[1641764939590,0.00021118,42324.0,42322.0,0.133058]
[1641764939794,0.00021118,42324.0,42322.0,0.059058]
[1641764940191,0.00021118,42324.0,42321.0,0.29923577]
[1641764940591,0.00521118,42324.0,42322.0,0.048]
[1641764940794,0.984838,42323.0,42322.0,0.048]
[1641764940993,1.37842136,42323.0,42322.0,0.048]
[1641764941594,2.02964629,42323.0,42322.0,0.048]
[1641764941795,2.02964629,42323.0,42320.0,0.00020589]
[1641764941992,1.584838,42321.0,42320.0,0.00020589]
[1641764942233,1.584838,42321.0,42315.0,0.56550419]
[1641764942438,1.60797922,42320.0,42319.0,0.00020589]
[1641764942636,1.684838,42320.0,42319.0,0.00020589]
[1641764943333,1.78483799,42320.0,42315.0,0.56550419]
[1641764943536,0.384838,42319.0,42317.0,0.00020589]
[1641764943734,0.05,42319.0,42317.0,0.00020589]
[1641764943934,0.00121295,42320.0,42317.0,0.00020589]
[1641764944535,0.00142351,42320.0,42316.0,0.0002059]
[1641764944737,0.00921056,42320.0,42317.0,0.015]
[1641764945737,0.00921056,42320.0,42317.0,0.074065]
[1641764945971,0.00021056,42320.0,42317.0,0.059065]
[1641764946573,0.00021056,42320.0,42317.0,0.049]
[1641764946574,0.00121056,42320.0,42317.0,0.049]
[1641764947172,0.00121056,42320.0,42317.0,0.069]
[1641764947771,0.00124354,42319.0,42317.0,0.069]
[1641764947971,0.00124354,42319.0,42317.0,0.02]
[1641764948572,0.01724354,42319.0,42317.0,0.02]
[1641764949574,0.016,42319.0,42317.0,0.02]
[1641764949827,0.00021026,42318.0,42317.0,0.02]
[1641764950628,0.02221026,42318.0,42317.0,0.02]
[1641764951129,0.02221026,42318.0,42317.0,0.81246251]
[1641764951930,0.00021026,42318.0,42317.0,0.81246251]
[1641764952833,0.00021026,42318.0,42317.0,0.84346251]
[1641764953030,0.00021026,42318.0,42317.0,0.435838]
[1641764953868,0.00021026,42318.0,42317.0,0.404838]
[1641764954569,0.54911026,42325.0,42317.0,0.426838]
[1641764954869,0.54911026,42325.0,42321.0,0.33674211]
[1641764955169,0.24021026,42325.0,42321.0,0.33674211]
[1641764955568,0.24021026,42325.0,42321.0,0.336948]
[1641764956568,0.24021026,42325.0,42321.0,0.34174211]
[1641764956770,0.24021026,42325.0,42321.0,0.341948]
[1641764957619,0.24021026,42325.0,42321.0,0.34174211]
[1641764957820,0.24021026,42325.0,42321.0,0.341948]
[1641764958023,0.24021026,42325.0,42321.0,0.336948]
[1641764958624,0.25021026,42325.0,42321.0,0.349948]
[1641764959722,0.00021118,42324.0,42321.0,0.349948]
[1641764959921,0.00021118,42324.0,42321.0,0.336948]
[1641764960321,0.00021118,42324.0,42322.0,0.38640768]
[1641764960973,0.00021118,42324.0,42322.0,0.44545902]
[1641764961474,0.00021118,42324.0,42322.0,0.38640768]
[1641764962672,0.00021118,42324.0,42322.0,0.39940768]
[1641764963672,1.00021118,42324.0,42322.0,0.39940768]
[1641764964071,1.00021118,42324.0,42322.0,0.38640768]
[1641764964723,0.00021102,42323.0,42322.0,0.39240768]
[1641764965824,0.00021102,42323.0,42322.0,0.37440768]
[1641764966021,0.00021102,42323.0,42321.0,0.33674211]
[1641764966623,0.00021102,42323.0,42321.0,0.35574211]
[1641764967223,0.00021102,42323.0,42321.0,0.09174011]
[1641764967926,0.00021102,42323.0,42321.0,0.07274011]
[1641764968772,0.00021102,42323.0,42321.0,0.08974011]
[1641764969571,0.00021087,42322.0,42321.0,0.08974011]
[1641764969771,0.00021087,42322.0,42321.0,0.47457811]
[1641764969973,0.00021087,42322.0,42321.0,0.45757811]
[1641764970771,0.00021087,42322.0,42321.0,0.47557811]
[1641764971971,0.00021087,42322.0,42321.0,0.45757811]
[1641764972633,0.00021087,42322.0,42321.0,0.47257811]
[1641764973833,0.00021087,42322.0,42321.0,0.45757811]
[1641764974633,1.00021087,42324.0,42321.0,0.47457811]
[1641764975635,1.00021087,42324.0,42321.0,0.08974011]
[1641764975833,1.00021087,42324.0,42321.0,0.09274011]
[1641764976682,1.00021087,42324.0,42321.0,0.10774011]
[1641764978584,1.00021087,42324.0,42321.0,0.09274011]
[1641764978787,1.00021087,42324.0,42321.0,0.11974011]
[1641764979588,0.00021102,42323.0,42321.0,0.11974011]
[1641764979838,0.00021102,42323.0,42321.0,0.09274011]
[1641764980639,0.00021102,42323.0,42321.0,0.12074011]
[1641764982138,0.00021102,42323.0,42321.0,0.09274011]
[1641764982739,0.00021102,42323.0,42321.0,0.12074011]
[1641764983984,0.00021102,42323.0,42321.0,0.09274011]
[1641764984479,0.00021087,42322.0,42321.0,0.09274011]
[1641764984678,0.00021087,42322.0,42321.0,0.50557811]
[1641764985482,0.00021087,42322.0,42321.0,0.06168011]
[1641764985784,0.00021087,42322.0,42321.0,0.048]
[1641764985980,0.40021087,42322.0,42321.0,0.02]
[1641764986181,0.00021087,42322.0,42321.0,0.02]
[1641764986780,0.00121087,42322.0,42321.0,0.077]
[1641764987928,0.00021087,42322.0,42321.0,0.02]
[1641764988728,0.00121087,42322.0,42321.0,0.072]
[1641764989929,0.00021087,42322.0,42321.0,0.02]
[1641764990730,0.00121087,42322.0,42321.0,0.063]
[1641764991574,0.00121087,42322.0,42321.0,0.444938]
[1641764992379,0.00121087,42322.0,42321.0,0.68742826]
[1641764992574,0.00021087,42322.0,42321.0,0.64442826]
[1641764992774,0.00021087,42322.0,42321.0,0.67242826]
[1641764993977,0.00021087,42322.0,42321.0,0.64442826]
[1641764994577,1.0,42322.0,42321.0,1.01959474]
[1641764999579,1.00021087,42322.0,42321.0,1.01959474]
[1641765000375,1.00021087,42322.0,42321.0,0.401938]
[1641765001377,1.00021087,42322.0,42321.0,0.63402237]
[1641765005030,1.00021087,42322.0,42321.0,0.401938]
[1641765011026,1.00021087,42322.0,42321.0,0.7748426]
[1641765012027,1.00021087,42322.0,42321.0,0.8218426]
[1641765012830,1.00021087,42322.0,42321.0,0.8518426]
[1641765013475,1.00021087,42322.0,42321.0,0.8218426]
[1641765013777,1.00021087,42322.0,42321.0,0.448938]
[1641765013976,1.00021087,42322.0,42321.0,0.82028232]
[1641765014777,1.00021087,42322.0,42321.0,0.84928232]
[1641765015979,1.00021087,42322.0,42321.0,0.82028232]
[1641765016879,1.00021087,42322.0,42321.0,0.84828232]
[1641765018028,1.00021087,42322.0,42321.0,0.82028232]
[1641765018630,1.00021087,42322.0,42321.0,0.448938]
[1641765018831,1.00021087,42322.0,42321.0,0.476938]
[1641765019933,1.00021087,42322.0,42321.0,0.448938]
[1641765020835,1.00021087,42322.0,42321.0,0.475938]
[1641765021077,1.00021087,42322.0,42321.0,0.84789736]
[1641765021977,1.00021087,42322.0,42321.0,0.82089736]
[1641765022578,1.00021087,42322.0,42321.0,0.448938]
[1641765022782,1.00021087,42322.0,42321.0,0.477938]
[1641765023981,1.00021087,42322.0,42321.0,0.448938]
[1641765024581,1.00021087,42322.0,42321.0,0.3641]
[1641765024831,1.00021087,42322.0,42321.0,0.4091]
[1641765025025,1.00021087,42322.0,42321.0,0.1091]
[1641765026627,1.00021087,42322.0,42321.0,0.0641]
[1641765026826,1.00021087,42322.0,42321.0,0.1061]
[1641765028034,1.00021087,42322.0,42321.0,0.0641]
[1641765028900,1.00021087,42322.0,42321.0,0.1121]
[1641765030001,1.00021087,42322.0,42321.0,0.0641]
[1641765030801,1.00021087,42322.0,42321.0,0.1101]
[1641765032006,1.40688315,42322.0,42321.0,0.0171]
[1641765032239,1.79294553,42322.0,42321.0,0.0171]
[1641765032836,1.80294553,42322.0,42321.0,0.0471]
[1641765033036,1.39627325,42322.0,42321.0,0.0471]
[1641765034039,1.38627325,42322.0,42321.0,0.0171]
[1641765034239,1.00143525,42322.0,42321.0,0.0171]
[1641765034437,1.00021087,42322.0,42321.0,0.0171]
[1641765034837,1.01321087,42322.0,42321.0,0.0171]
[1641765035039,1.39804887,42322.0,42321.0,0.0171]
[1641765036178,1.38504887,42322.0,42321.0,0.0171]
[1641765036780,1.39704887,42322.0,42321.0,0.0171]
[1641765037879,1.01221087,42322.0,42321.0,0.0171]
[1641765038079,1.00021087,42322.0,42321.0,0.0171]
[1641765038479,1.38504887,42322.0,42321.0,0.0171]
[1641765038681,1.00021087,42322.0,42321.0,0.0171]
[1641765038882,1.01221087,42322.0,42321.0,0.0171]
[1641765040134,1.38504887,42322.0,42321.0,0.0171]
[1641765040331,1.76226244,42322.0,42321.0,0.0171]
[1641765040935,1.77326244,42322.0,42321.0,0.0171]
[1641765041733,1.39604887,42322.0,42321.0,0.0171]
[1641765042135,1.38504887,42322.0,42321.0,0.0171]
[1641765042938,1.39604887,42322.0,42321.0,0.0171]
[1641765045891,1.38604887,42322.0,42321.0,0.0171]
[1641765046095,1.37504887,42322.0,42321.0,0.0171]
[1641765046794,1.38404887,42322.0,42321.0,0.0171]
[1641765047096,0.99921087,42322.0,42321.0,0.0171]
[1641765048136,0.99021087,42322.0,42321.0,0.0171]
[1641765048934,0.99021087,42322.0,42321.0,0.13521]